[Event "*** SCC Grand Prix: Titled Tuesday Blitz"]
[Site "Chess.com"]
[Date "2020.10.06"]
[Round "5"]
[White "IMJonathanCarlstedt"]
[Black "Xeniya2005"]
[Result "0-1"]
[WhiteElo "2511"]
[BlackElo "2395"]
[TimeControl "180+1"]
[EndTime "10:58:08 PDT"]
[Termination "Xeniya2005 won by resignation"]

1. d4 {[%clk 0:02:58.7]} 1... Nf6 {[%clk 0:02:58.2]} 2. Bf4 {[%clk 0:02:58.2]}
2... d5 {[%clk 0:02:57.6]} 3. e3 {[%clk 0:02:57.5]} 3... c5 {[%clk 0:02:55.6]}
4. c3 {[%clk 0:02:57.1]} 4... Nc6 {[%clk 0:02:55.2]} 5. Nd2 {[%clk 0:02:55.9]}
5... Qb6 {[%clk 0:02:48.7]} 6. Qb3 {[%clk 0:02:53.1]} 6... c4 {[%clk 0:02:46.5]}
7. Qxb6 {[%clk 0:02:52.3]} 7... axb6 {[%clk 0:02:47.4]} 8. a3 {[%clk 0:02:52.8]}
8... Bf5 {[%clk 0:02:38.5]} 9. f3 {[%clk 0:02:50.2]} 9... e6 {[%clk 0:02:34.4]}
10. Ne2 {[%clk 0:02:45.8]} 10... b5 {[%clk 0:02:31.5]} 11. Rc1 {[%clk
0:02:43.5]} 11... h5 {[%clk 0:02:19.7]} 12. h4 {[%clk 0:02:41.8]} 12... Kd7
{[%clk 0:02:09.7]} 13. Ng3 {[%clk 0:02:41]} 13... Bg6 {[%clk 0:02:06.6]} 14. e4
{[%clk 0:02:41]} 14... Re8 {[%clk 0:01:58.5]} 15. e5 {[%clk 0:02:36.3]} 15...
Ng8 {[%clk 0:01:52.8]} 16. Be3 {[%clk 0:02:31.6]} 16... Be7 {[%clk 0:01:49.7]}
17. f4 {[%clk 0:02:30]} 17... Nh6 {[%clk 0:01:45.8]} 18. Nf3 {[%clk 0:02:28.3]}
18... Nf5 {[%clk 0:01:39.1]} 19. Nxf5 {[%clk 0:02:27.4]} 19... Bxf5 {[%clk
0:01:39.7]} 20. Be2 {[%clk 0:02:19.4]} 20... Bg4 {[%clk 0:01:34.8]} 21. Kf2
{[%clk 0:02:17.3]} 21... g6 {[%clk 0:01:17.8]} 22. Bd1 {[%clk 0:02:15.5]} 22...
Ref8 {[%clk 0:01:12]} 23. Bc2 {[%clk 0:02:13.9]} 23... Bxf3 {[%clk 0:01:04]} 24.
Kxf3 {[%clk 0:02:12.7]} 24... Ra8 {[%clk 0:01:01.5]} 25. Rcg1 {[%clk 0:02:11]}
25... Bd8 {[%clk 0:00:56.4]} 26. Ke2 {[%clk 0:02:09.7]} 26... Ne7 {[%clk
0:00:51.9]} 27. Bf2 {[%clk 0:02:02.7]} 27... Nf5 {[%clk 0:00:45.4]} 28. g4
{[%clk 0:02:01.8]} 28... hxg4 {[%clk 0:00:41.7]} 29. Rxg4 {[%clk 0:02:02.7]}
29... Be7 {[%clk 0:00:37.8]} 30. Rg2 {[%clk 0:01:53.8]} 30... Rh7 {[%clk
0:00:31.7]} 31. Rgh2 {[%clk 0:01:34.9]} 31... Rah8 {[%clk 0:00:26.3]} 32. Kf1
{[%clk 0:01:32.3]} 32... Rh6 {[%clk 0:00:18.6]} 33. Bd1 {[%clk 0:01:29.2]} 33...
Nxh4 {[%clk 0:00:17.9]} 34. a4 {[%clk 0:01:23.5]} 34... bxa4 {[%clk 0:00:15.4]}
35. Bxa4+ {[%clk 0:01:24.4]} 35... Kc7 {[%clk 0:00:15.7]} 36. Bd1 {[%clk
0:01:19.9]} 36... Nf5 {[%clk 0:00:15.3]} 37. Rxh6 {[%clk 0:01:20.8]} 37... Rxh6
{[%clk 0:00:15.9]} 38. Rxh6 {[%clk 0:01:20.7]} 38... Nxh6 {[%clk 0:00:16.8]} 39.
Kg2 {[%clk 0:01:20.6]} 39... Nf5 {[%clk 0:00:16.7]} 40. Ba4 {[%clk 0:01:20]}
40... Kd8 {[%clk 0:00:15.9]} 41. Kf3 {[%clk 0:01:19.2]} 41... Bf8 {[%clk
0:00:15]} 42. b3 {[%clk 0:01:18.4]} 42... cxb3 {[%clk 0:00:14.4]} 43. Bxb3
{[%clk 0:01:19.3]} 43... Ne7 {[%clk 0:00:14.1]} 44. c4 {[%clk 0:01:18.8]} 44...
dxc4 {[%clk 0:00:13.8]} 45. Bxc4 {[%clk 0:01:19.7]} 45... Kc7 {[%clk 0:00:13.9]}
46. Ke4 {[%clk 0:01:17.5]} 46... Bh6 {[%clk 0:00:13.1]} 47. Be3 {[%clk
0:01:12.1]} 47... Kc6 {[%clk 0:00:12.5]} 48. Be2 {[%clk 0:01:10.7]} 48... Nd5
{[%clk 0:00:11.7]} 49. Bf3 {[%clk 0:01:10.9]} 49... b5 {[%clk 0:00:10.4]} 50.
Kd3 {[%clk 0:01:09.8]} 50... Bf8 {[%clk 0:00:07.5]} 51. Bd2 {[%clk 0:01:07.8]}
51... Ba3 {[%clk 0:00:06.4]} 52. Be4 {[%clk 0:01:05.8]} 52... Be7 {[%clk
0:00:03.9]} 53. Bf3 {[%clk 0:01:05.6]} 53... Kb6 {[%clk 0:00:04]} 54. Kc2 {[%clk
0:00:55.1]} 54... Bb4 {[%clk 0:00:02.9]} 55. Bxd5 {[%clk 0:00:49.6]} 55... Bxd2
{[%clk 0:00:02.2]} 56. Bxe6 {[%clk 0:00:50.5]} 56... fxe6 {[%clk 0:00:01.3]} 57.
Kxd2 {[%clk 0:00:49.6]} 57... Kc6 {[%clk 0:00:01.9]} 58. Kd3 {[%clk 0:00:49.2]}
58... Kd5 {[%clk 0:00:02.8]} 59. Kc3 {[%clk 0:00:49.4]} 59... Ke4 {[%clk
0:00:02.4]} 60. Kb4 {[%clk 0:00:50.2]} 60... Kxd4 {[%clk 0:00:02.5]} 61. Kxb5
{[%clk 0:00:50.5]} 61... Ke4 {[%clk 0:00:02.4]} 62. Kc6 {[%clk 0:00:51]} 62...
Kxf4 {[%clk 0:00:01.8]} 63. Kd7 {[%clk 0:00:51.7]} 63... Kf5 {[%clk 0:00:01.8]}
64. Kd6 {[%clk 0:00:52.6]} 64... g5 {[%clk 0:00:02.2]} 65. Kc5 {[%clk
0:00:53.5]} 65... g4 {[%clk 0:00:02.9]} 66. Kd4 {[%clk 0:00:54.4]} 66... Kf4
{[%clk 0:00:02.8]} 67. Kd3 {[%clk 0:00:54]} 67... Kxe5 {[%clk 0:00:03.7]} 68.
Ke2 {[%clk 0:00:54.9]} 68... Kf4 {[%clk 0:00:03.8]} 69. Kf2 {[%clk 0:00:55.8]}
69... e5 {[%clk 0:00:04.4]} 70. Kg2 {[%clk 0:00:54.8]} 70... e4 {[%clk
0:00:04.8]} 71. Kf2 {[%clk 0:00:54.8]} 71... e3+ {[%clk 0:00:05.2]} 72. Ke2
{[%clk 0:00:54.8]} 72... Ke4 {[%clk 0:00:05.8]} 73. Ke1 {[%clk 0:00:54.6]} 73...
Kd3 {[%clk 0:00:06]} 74. Kd1 {[%clk 0:00:54.8]} 74... Ke4 {[%clk 0:00:05.9]} 75.
Ke1 {[%clk 0:00:55.7]} 75... Kf3 {[%clk 0:00:06.1]} 76. Kf1 {[%clk 0:00:56]}
76... e2+ {[%clk 0:00:06.2]} 77. Ke1 {[%clk 0:00:56.2]} 77... g3 {[%clk
0:00:06.6]} 78. Kd2 {[%clk 0:00:56.9]} 78... Kf2 {[%clk 0:00:07.5]} 0-1

[Event "*** SCC Grand Prix: Titled Tuesday Blitz"]
[Site "Chess.com"]
[Date "2020.10.06"]
[Round "5"]
[White "Unkreativ3"]
[Black "PavelShkapenko"]
[Result "0-1"]
[WhiteElo "2548"]
[BlackElo "2726"]
[TimeControl "180+1"]
[EndTime "10:58:09 PDT"]
[Termination "PavelShkapenko won by checkmate"]

1. d4 {[%clk 0:02:59.8]} 1... Nf6 {[%clk 0:02:59.6]} 2. c4 {[%clk 0:03:00.1]}
2... e6 {[%clk 0:02:59.5]} 3. Nc3 {[%clk 0:03:00.5]} 3... Bb4 {[%clk 0:02:59.2]}
4. Nf3 {[%clk 0:03:00.9]} 4... c5 {[%clk 0:02:58.4]} 5. g3 {[%clk 0:03:00.7]}
5... cxd4 {[%clk 0:02:57.3]} 6. Nxd4 {[%clk 0:03:01.6]} 6... Ne4 {[%clk
0:02:57.4]} 7. Qc2 {[%clk 0:02:52.6]} 7... Qa5 {[%clk 0:02:54.2]} 8. Nb3 {[%clk
0:02:50.7]} 8... Qf5 {[%clk 0:02:49]} 9. e3 {[%clk 0:02:30]} 9... Nxc3 {[%clk
0:02:41.1]} 10. Qxf5 {[%clk 0:02:13.3]} 10... Ne4+ {[%clk 0:02:28.1]} 11. Ke2
{[%clk 0:01:44.8]} 11... exf5 {[%clk 0:02:27.9]} 12. f3 {[%clk 0:01:44.9]} 12...
Nf6 {[%clk 0:02:16.3]} 13. Nd4 {[%clk 0:01:42]} 13... d6 {[%clk 0:02:07.7]} 14.
Nb5 {[%clk 0:01:39.8]} 14... Be6 {[%clk 0:00:49.3]} 15. Nc7+ {[%clk 0:01:35]}
15... Ke7 {[%clk 0:00:49.5]} 16. Nxa8 {[%clk 0:01:33.9]} 16... Na6 {[%clk
0:00:49.8]} 17. a3 {[%clk 0:01:25.4]} 17... Ba5 {[%clk 0:00:38.6]} 18. b4 {[%clk
0:01:23.6]} 18... Bd8 {[%clk 0:00:31.5]} 19. Kf2 {[%clk 0:01:09.3]} 19... Kd7
{[%clk 0:00:31.6]} 20. a4 {[%clk 0:00:30.2]} 20... Be7 {[%clk 0:00:27.6]} 21. c5
{[%clk 0:00:25.3]} 21... Rxa8 {[%clk 0:00:26]} 22. c6+ {[%clk 0:00:21.2]} 22...
bxc6 {[%clk 0:00:19.2]} 23. Bxa6 {[%clk 0:00:20.8]} 23... Rb8 {[%clk 0:00:19.3]}
24. Ba3 {[%clk 0:00:20.6]} 24... Nd5 {[%clk 0:00:17.6]} 25. Rab1 {[%clk
0:00:19.8]} 25... Nc3 {[%clk 0:00:17]} 26. Rbc1 {[%clk 0:00:19.5]} 26... Nxa4
{[%clk 0:00:17.2]} 27. Rhd1 {[%clk 0:00:17.4]} 27... d5 {[%clk 0:00:17.2]} 28.
Be2 {[%clk 0:00:14]} 28... Bxb4 {[%clk 0:00:16.2]} 29. Bxb4 {[%clk 0:00:11.6]}
29... Rxb4 {[%clk 0:00:15.9]} 30. Rb1 {[%clk 0:00:11.4]} 30... a5 {[%clk
0:00:15]} 31. Rxb4 {[%clk 0:00:10.7]} 31... axb4 {[%clk 0:00:15.4]} 32. Rd4
{[%clk 0:00:11]} 32... c5 {[%clk 0:00:14.7]} 33. Bb5+ {[%clk 0:00:11.3]} 33...
Kd6 {[%clk 0:00:14.5]} 34. Rd2 {[%clk 0:00:08.8]} 34... Nc3 {[%clk 0:00:14.7]}
35. Bd3 {[%clk 0:00:09.1]} 35... Kc6 {[%clk 0:00:14.8]} 36. g4 {[%clk
0:00:08.7]} 36... fxg4 {[%clk 0:00:14.5]} 37. Bxh7 {[%clk 0:00:09.6]} 37... gxf3
{[%clk 0:00:14]} 38. Kxf3 {[%clk 0:00:09.7]} 38... c4 {[%clk 0:00:13.4]} 39. h4
{[%clk 0:00:09]} 39... Kc5 {[%clk 0:00:13.8]} 40. Rg2 {[%clk 0:00:09.1]} 40...
b3 {[%clk 0:00:13.8]} 41. Rxg7 {[%clk 0:00:09.2]} 41... b2 {[%clk 0:00:13.1]}
42. Rg1 {[%clk 0:00:06.6]} 42... f5 {[%clk 0:00:12]} 43. h5 {[%clk 0:00:05.3]}
43... b1=Q {[%clk 0:00:12.2]} 44. Rxb1 {[%clk 0:00:05.3]} 44... Nxb1 {[%clk
0:00:12.9]} 45. h6 {[%clk 0:00:05.7]} 45... Nd2+ {[%clk 0:00:13.4]} 46. Kf4
{[%clk 0:00:06]} 46... Ne4 {[%clk 0:00:13.6]} 47. Bxf5 {[%clk 0:00:06.1]} 47...
Bg8 {[%clk 0:00:11.7]} 48. Ke5 {[%clk 0:00:06.4]} 48... c3 {[%clk 0:00:11.7]}
49. Be6 {[%clk 0:00:06.5]} 49... Bh7 {[%clk 0:00:11.2]} 50. Bf5 {[%clk
0:00:06.7]} 50... Ng5 {[%clk 0:00:11.2]} 51. Bxh7 {[%clk 0:00:03.2]} 51... Nxh7
{[%clk 0:00:11.1]} 52. Kf5 {[%clk 0:00:03.2]} 52... c2 {[%clk 0:00:11.3]} 53.
Kg6 {[%clk 0:00:04.1]} 53... c1=Q {[%clk 0:00:11.2]} 54. Kxh7 {[%clk 0:00:05]}
54... Qxe3 {[%clk 0:00:11.7]} 55. Kg7 {[%clk 0:00:05.9]} 55... Qg5+ {[%clk
0:00:11.5]} 56. Kh7 {[%clk 0:00:05.2]} 56... d4 {[%clk 0:00:11.8]} 57. Kh8
{[%clk 0:00:06.1]} 57... Qxh6+ {[%clk 0:00:12]} 58. Kg8 {[%clk 0:00:07]} 58...
Qf6 {[%clk 0:00:12.2]} 59. Kh7 {[%clk 0:00:07.3]} 59... Kd6 {[%clk 0:00:12.3]}
60. Kg8 {[%clk 0:00:07.5]} 60... Ke7 {[%clk 0:00:12.7]} 61. Kh7 {[%clk
0:00:08.4]} 61... Qg5 {[%clk 0:00:13]} 62. Kh8 {[%clk 0:00:08.7]} 62... Kf7
{[%clk 0:00:13.5]} 63. Kh7 {[%clk 0:00:09.6]} 63... Qh5# {[%clk 0:00:14]} 0-1

[Event "*** SCC Grand Prix: Titled Tuesday Blitz"]
[Site "Chess.com"]
[Date "2020.10.06"]
[Round "5"]
[White "Smile2005"]
[Black "Korchmar_Vasiliy"]
[Result "0-1"]
[WhiteElo "2410"]
[BlackElo "2577"]
[TimeControl "180+1"]
[EndTime "10:58:09 PDT"]
[Termination "Korchmar_Vasiliy won by checkmate"]

1. Nf3 {[%clk 0:02:58.7]} 1... Nf6 {[%clk 0:02:59.3]} 2. g3 {[%clk 0:02:59.6]}
2... g6 {[%clk 0:02:59.3]} 3. Bg2 {[%clk 0:02:59.8]} 3... Bg7 {[%clk 0:02:59.9]}
4. O-O {[%clk 0:03:00.7]} 4... O-O {[%clk 0:03:00.5]} 5. d3 {[%clk 0:03:01.6]}
5... d5 {[%clk 0:02:58.6]} 6. Nc3 {[%clk 0:03:01.7]} 6... Nc6 {[%clk 0:02:57.1]}
7. e4 {[%clk 0:03:01.1]} 7... d4 {[%clk 0:02:52.1]} 8. Nb1 {[%clk 0:03:00.9]}
8... e5 {[%clk 0:02:52]} 9. a4 {[%clk 0:03:00.8]} 9... Ne8 {[%clk 0:02:44.8]}
10. Na3 {[%clk 0:03:00]} 10... Nd6 {[%clk 0:02:44]} 11. b3 {[%clk 0:02:59.8]}
11... f5 {[%clk 0:02:42.8]} 12. exf5 {[%clk 0:02:59.6]} 12... Bxf5 {[%clk
0:02:30.1]} 13. Ng5 {[%clk 0:02:54.8]} 13... Kh8 {[%clk 0:02:21.1]} 14. Nc4
{[%clk 0:02:54.3]} 14... h6 {[%clk 0:02:15.3]} 15. Ne4 {[%clk 0:02:54]} 15...
Nxe4 {[%clk 0:02:14.7]} 16. Bxe4 {[%clk 0:02:47.9]} 16... Bxe4 {[%clk
0:02:14.6]} 17. dxe4 {[%clk 0:02:47.7]} 17... Qd7 {[%clk 0:02:14.8]} 18. Nb2
{[%clk 0:02:45.2]} 18... Nd8 {[%clk 0:01:45.6]} 19. Nd3 {[%clk 0:02:44.9]} 19...
Qh3 {[%clk 0:01:41.9]} 20. Qe2 {[%clk 0:02:44.4]} 20... Ne6 {[%clk 0:01:40.8]}
21. Bd2 {[%clk 0:02:44]} 21... c5 {[%clk 0:01:36.5]} 22. a5 {[%clk 0:02:41.2]}
22... Rae8 {[%clk 0:01:35.5]} 23. f3 {[%clk 0:02:38.8]} 23... Rc8 {[%clk
0:01:28.8]} 24. a6 {[%clk 0:02:28.8]} 24... b5 {[%clk 0:01:27.4]} 25. Ra5 {[%clk
0:02:28.4]} 25... c4 {[%clk 0:01:26.4]} 26. Nb4 {[%clk 0:02:25.9]} 26... d3
{[%clk 0:01:14.3]} 27. cxd3 {[%clk 0:02:22.5]} 27... Nd4 {[%clk 0:01:14.8]} 28.
Qg2 {[%clk 0:02:21.5]} 28... Qxg2+ {[%clk 0:01:13.2]} 29. Kxg2 {[%clk
0:02:21.7]} 29... Nxb3 {[%clk 0:01:08.4]} 30. Ra2 {[%clk 0:02:14.3]} 30... cxd3
{[%clk 0:01:07.1]} 31. Rb1 {[%clk 0:01:58.2]} 31... Nd4 {[%clk 0:01:04.5]} 32.
Rf1 {[%clk 0:01:51.3]} 32... Nb3 {[%clk 0:00:41]} 33. Rb1 {[%clk 0:01:50.8]}
33... Nd4 {[%clk 0:00:35.9]} 34. Rf1 {[%clk 0:01:50.5]} 34... Rfd8 {[%clk
0:00:33.9]} 35. Be3 {[%clk 0:01:15.9]} 35... Nc2 {[%clk 0:00:32.5]} 36. Nxc2
{[%clk 0:01:12.4]} 36... Rxc2+ {[%clk 0:00:32.9]} 37. Rxc2 {[%clk 0:01:12.1]}
37... dxc2 {[%clk 0:00:33.8]} 38. Bxa7 {[%clk 0:01:07.2]} 38... Ra8 {[%clk
0:00:25.9]} 39. Bc5 {[%clk 0:00:45.6]} 39... Rxa6 {[%clk 0:00:26.8]} 40. Rc1
{[%clk 0:00:45.8]} 40... Rc6 {[%clk 0:00:18.1]} 41. Rxc2 {[%clk 0:00:42]} 41...
Bf8 {[%clk 0:00:17.4]} 42. Bxf8 {[%clk 0:00:37.4]} 42... Rxc2+ {[%clk
0:00:18.3]} 43. Kh3 {[%clk 0:00:37.7]} 43... Kg8 {[%clk 0:00:15.7]} 44. Bd6
{[%clk 0:00:37.6]} 44... Kf7 {[%clk 0:00:09.9]} 45. Bxe5 {[%clk 0:00:37.5]}
45... b4 {[%clk 0:00:10.4]} 46. Kg4 {[%clk 0:00:37.2]} 46... Rxh2 {[%clk
0:00:07.8]} 47. f4 {[%clk 0:00:37.4]} 47... b3 {[%clk 0:00:05]} 48. f5 {[%clk
0:00:37.6]} 48... gxf5+ {[%clk 0:00:05.9]} 49. Kxf5 {[%clk 0:00:35.2]} 49... b2
{[%clk 0:00:06.2]} 50. Bxb2 {[%clk 0:00:35.8]} 50... Rxb2 {[%clk 0:00:06.8]} 51.
g4 {[%clk 0:00:36.5]} 51... Rb5+ {[%clk 0:00:06.3]} 52. Kf4 {[%clk 0:00:36.7]}
52... Kf6 {[%clk 0:00:05.4]} 53. e5+ {[%clk 0:00:34.6]} 53... Rxe5 {[%clk
0:00:04.5]} 54. g5+ {[%clk 0:00:35.5]} 54... hxg5+ {[%clk 0:00:04.1]} 55. Kg4
{[%clk 0:00:36.4]} 55... Kg6 {[%clk 0:00:03.6]} 56. Kg3 {[%clk 0:00:36.8]} 56...
Kf5 {[%clk 0:00:03.8]} 57. Kf3 {[%clk 0:00:36.6]} 57... Re4 {[%clk 0:00:03.3]}
58. Kg3 {[%clk 0:00:36.6]} 58... Re3+ {[%clk 0:00:03.7]} 59. Kf2 {[%clk
0:00:37]} 59... Kf4 {[%clk 0:00:04.6]} 60. Kg2 {[%clk 0:00:37.5]} 60... g4
{[%clk 0:00:05.5]} 61. Kf2 {[%clk 0:00:37.7]} 61... Re4 {[%clk 0:00:04.6]} 62.
Kg2 {[%clk 0:00:37.8]} 62... Re2+ {[%clk 0:00:05.1]} 63. Kf1 {[%clk 0:00:37.9]}
63... Kf3 {[%clk 0:00:05.3]} 64. Kg1 {[%clk 0:00:38.2]} 64... Re1+ {[%clk
0:00:04.2]} 65. Kh2 {[%clk 0:00:38.2]} 65... g3+ {[%clk 0:00:04.6]} 66. Kh3
{[%clk 0:00:38.2]} 66... Rh1# {[%clk 0:00:05.5]} 0-1

[Event "*** SCC Grand Prix: Titled Tuesday Blitz"]
[Site "Chess.com"]
[Date "2020.10.06"]
[Round "5"]
[White "chessplayer9919"]
[Black "Bulldog167"]
[Result "1/2-1/2"]
[WhiteElo "2615"]
[BlackElo "2779"]
[TimeControl "180+1"]
[EndTime "10:58:10 PDT"]
[Termination "Game drawn - insufficient material"]

1. d4 {[%clk 0:03:00.9]} 1... Nf6 {[%clk 0:02:59.6]} 2. c4 {[%clk 0:02:58.5]}
2... c5 {[%clk 0:03:00]} 3. Nf3 {[%clk 0:02:52.1]} 3... e6 {[%clk 0:03:00.2]} 4.
Nc3 {[%clk 0:02:45.1]} 4... d5 {[%clk 0:03:00.1]} 5. cxd5 {[%clk 0:02:44.7]}
5... exd5 {[%clk 0:03:00]} 6. g3 {[%clk 0:02:41.4]} 6... Nc6 {[%clk 0:02:59.2]}
7. Bg2 {[%clk 0:02:41.1]} 7... cxd4 {[%clk 0:02:59.4]} 8. Nxd4 {[%clk 0:02:40]}
8... Bc5 {[%clk 0:02:59.6]} 9. Nb3 {[%clk 0:02:38.8]} 9... Bb6 {[%clk
0:02:59.4]} 10. O-O {[%clk 0:02:38.5]} 10... d4 {[%clk 0:02:56.4]} 11. Na4
{[%clk 0:02:36.4]} 11... O-O {[%clk 0:02:45.4]} 12. Bg5 {[%clk 0:02:20.3]} 12...
h6 {[%clk 0:02:38.6]} 13. Bxf6 {[%clk 0:02:08.2]} 13... Qxf6 {[%clk 0:02:39.5]}
14. Nxb6 {[%clk 0:02:08.5]} 14... axb6 {[%clk 0:02:40.4]} 15. Bxc6 {[%clk
0:02:06.7]} 15... bxc6 {[%clk 0:02:40.8]} 16. Qxd4 {[%clk 0:02:06.1]} 16... Qd8
{[%clk 0:02:32.6]} 17. Qxd8 {[%clk 0:01:49.9]} 17... Rxd8 {[%clk 0:02:33.5]} 18.
Rfd1 {[%clk 0:01:48.3]} 18... Rxd1+ {[%clk 0:02:24.6]} 19. Rxd1 {[%clk
0:01:49.2]} 19... Be6 {[%clk 0:02:25.3]} 20. Nc1 {[%clk 0:00:41.3]} 20... Bxa2
{[%clk 0:02:24.4]} 21. b3 {[%clk 0:00:41.5]} 21... Bb1 {[%clk 0:02:10.1]} 22. f3
{[%clk 0:00:36.7]} 22... c5 {[%clk 0:02:05.6]} 23. Kf2 {[%clk 0:00:30.2]} 23...
b5 {[%clk 0:01:48.8]} 24. Rd5 {[%clk 0:00:26.8]} 24... Rc8 {[%clk 0:01:44]} 25.
Ke1 {[%clk 0:00:19.9]} 25... b4 {[%clk 0:01:15.1]} 26. e4 {[%clk 0:00:17.6]}
26... c4 {[%clk 0:01:13.3]} 27. Rd4 {[%clk 0:00:04.7]} 27... cxb3 {[%clk
0:00:44.8]} 28. Nxb3 {[%clk 0:00:05.6]} 28... Rb8 {[%clk 0:00:31.3]} 29. Kd2
{[%clk 0:00:04.9]} 29... Ba2 {[%clk 0:00:31.5]} 30. Kc2 {[%clk 0:00:04.7]} 30...
Rc8+ {[%clk 0:00:32]} 31. Kb2 {[%clk 0:00:04.6]} 31... Bxb3 {[%clk 0:00:32.6]}
32. Kxb3 {[%clk 0:00:04.9]} 32... Rc3+ {[%clk 0:00:33.5]} 33. Kxb4 {[%clk
0:00:05.5]} 33... Rxf3 {[%clk 0:00:34.4]} 34. Kc5 {[%clk 0:00:03.1]} 34... Rf2
{[%clk 0:00:34]} 35. h4 {[%clk 0:00:02.6]} 35... Rf3 {[%clk 0:00:34.4]} 36. g4
{[%clk 0:00:02.6]} 36... f6 {[%clk 0:00:26.1]} 37. Kd5 {[%clk 0:00:02.7]} 37...
Ra3 {[%clk 0:00:19.8]} 38. Ke6 {[%clk 0:00:02.6]} 38... Rg3 {[%clk 0:00:17.5]}
39. Kf5 {[%clk 0:00:02.2]} 39... Rf3+ {[%clk 0:00:14.5]} 40. Kg6 {[%clk
0:00:02.1]} 40... Kf8 {[%clk 0:00:13]} 41. Rd7 {[%clk 0:00:02]} 41... Rf4 {[%clk
0:00:13.5]} 42. Rf7+ {[%clk 0:00:02.2]} 42... Ke8 {[%clk 0:00:14]} 43. Rxg7
{[%clk 0:00:02.9]} 43... Rxg4+ {[%clk 0:00:13.9]} 44. Kxf6 {[%clk 0:00:03]}
44... Rxh4 {[%clk 0:00:14]} 45. e5 {[%clk 0:00:02.7]} 45... Rf4+ {[%clk
0:00:07]} 46. Ke6 {[%clk 0:00:03]} 46... Kf8 {[%clk 0:00:07.6]} 47. Rh7 {[%clk
0:00:02.6]} 47... Rh4 {[%clk 0:00:06.3]} 48. Ra7 {[%clk 0:00:02.4]} 48... h5
{[%clk 0:00:06.2]} 49. Ra8+ {[%clk 0:00:02.3]} 49... Kg7 {[%clk 0:00:06.5]} 50.
Ke7 {[%clk 0:00:03.2]} 50... Re4 {[%clk 0:00:06.4]} 51. e6 {[%clk 0:00:02.7]}
51... h4 {[%clk 0:00:07.1]} 52. Ra3 {[%clk 0:00:02.4]} 52... Kg6 {[%clk
0:00:07.2]} 53. Kd7 {[%clk 0:00:02]} 53... Kf6 {[%clk 0:00:07.6]} 54. Rf3+
{[%clk 0:00:02]} 54... Kg5 {[%clk 0:00:07.1]} 55. e7 {[%clk 0:00:02.9]} 55...
Kg4 {[%clk 0:00:07.6]} 56. Rf1 {[%clk 0:00:02.6]} 56... h3 {[%clk 0:00:08.1]}
57. e8=Q {[%clk 0:00:02.7]} 57... Rxe8 {[%clk 0:00:09]} 58. Kxe8 {[%clk
0:00:03.6]} 58... Kg3 {[%clk 0:00:09.9]} 59. Kf7 {[%clk 0:00:03.3]} 59... Kg2
{[%clk 0:00:10.4]} 60. Ra1 {[%clk 0:00:03.7]} 60... h2 {[%clk 0:00:11.3]} 61.
Kg6 {[%clk 0:00:04.3]} 61... h1=Q {[%clk 0:00:11.2]} 62. Rxh1 {[%clk 0:00:04.4]}
62... Kxh1 {[%clk 0:00:12.1]} 1/2-1/2